[Event "*** Titled Tuesday Blitz"]
[Site "Chess.com"]
[Date "2020.11.03"]
[Round "2"]
[White "exoticprincess"]
[Black "MokshanovAlexey"]
[Result "1-0"]
[WhiteElo "2887"]
[BlackElo "2578"]
[TimeControl "180+1"]
[EndTime "10:19:55 PST"]
[Termination "exoticprincess won on time"]

1. d4 {[%clk 0:03:00.9]} 1... d5 {[%clk 0:02:59.8]} 2. c4 {[%clk 0:02:59.2]}
2... e6 {[%clk 0:02:59.8]} 3. Nc3 {[%clk 0:02:58.1]} 3... Nf6 {[%clk 0:02:59.3]}
4. cxd5 {[%clk 0:02:57]} 4... exd5 {[%clk 0:02:59.1]} 5. Bf4 {[%clk 0:02:57.6]}
5... c6 {[%clk 0:02:58.4]} 6. e3 {[%clk 0:02:57.8]} 6... Bd6 {[%clk 0:02:54.3]}
7. g3 {[%clk 0:02:57.3]} 7... Bxf4 {[%clk 0:02:46.7]} 8. gxf4 {[%clk 0:02:56.9]}
8... Bf5 {[%clk 0:02:45.6]} 9. Nf3 {[%clk 0:02:55.9]} 9... Ne4 {[%clk
0:02:43.2]} 10. Rg1 {[%clk 0:02:47.1]} 10... g6 {[%clk 0:02:30.8]} 11. Bd3
{[%clk 0:02:45.1]} 11... Qe7 {[%clk 0:01:58.4]} 12. Qc2 {[%clk 0:02:37.9]} 12...
Nd7 {[%clk 0:01:38.9]} 13. O-O-O {[%clk 0:02:34.8]} 13... Nxc3 {[%clk
0:01:30.2]} 14. Qxc3 {[%clk 0:02:33.9]} 14... Bxd3 {[%clk 0:01:30]} 15. Qxd3
{[%clk 0:02:34.2]} 15... O-O-O {[%clk 0:01:24.5]} 16. Kd2 {[%clk 0:02:28]} 16...
Nf6 {[%clk 0:01:21.9]} 17. Ke2 {[%clk 0:02:27.7]} 17... Ne4 {[%clk 0:01:18.7]}
18. Rb1 {[%clk 0:02:23.2]} 18... Kb8 {[%clk 0:01:15.4]} 19. b4 {[%clk
0:02:22.5]} 19... Rc8 {[%clk 0:01:04.6]} 20. a4 {[%clk 0:02:18.3]} 20... h6
{[%clk 0:01:03.9]} 21. h4 {[%clk 0:02:12.9]} 21... Rhg8 {[%clk 0:00:49.4]} 22.
Ne5 {[%clk 0:01:55.1]} 22... Qxh4 {[%clk 0:00:47]} 23. Rg2 {[%clk 0:01:49.3]}
23... g5 {[%clk 0:00:32.5]} 24. b5 {[%clk 0:01:34.5]} 24... cxb5 {[%clk
0:00:29.9]} 25. Rxb5 {[%clk 0:01:15.5]} 25... Nc3+ {[%clk 0:00:29.6]} 26. Kd2
{[%clk 0:01:15.9]} 26... Nxb5 {[%clk 0:00:29.8]} 27. Qxb5 {[%clk 0:01:16.8]}
27... gxf4 {[%clk 0:00:27]} 28. Qxd5 {[%clk 0:00:44]} 28... fxe3+ {[%clk
0:00:24.9]} 29. fxe3 {[%clk 0:00:44.9]} 29... Rxg2+ {[%clk 0:00:21.1]} 30. Qxg2
{[%clk 0:00:45.8]} 30... Qe7 {[%clk 0:00:19]} 31. Kd3 {[%clk 0:00:41]} 31... f6
{[%clk 0:00:17.8]} 32. Nc4 {[%clk 0:00:39]} 32... Qh7+ {[%clk 0:00:16.3]} 33. e4
{[%clk 0:00:37.9]} 33... Qd7 {[%clk 0:00:14.4]} 34. Qa2 {[%clk 0:00:28.6]} 34...
Qh3+ {[%clk 0:00:13.6]} 35. Ne3 {[%clk 0:00:28.7]} 35... Qd7 {[%clk 0:00:08.7]}
36. Nd5 {[%clk 0:00:25.8]} 36... f5 {[%clk 0:00:06.4]} 37. e5 {[%clk 0:00:21.9]}
37... Qe6 {[%clk 0:00:06.5]} 38. Qg2 {[%clk 0:00:19]} 38... Qa6+ {[%clk
0:00:05.3]} 39. Ke3 {[%clk 0:00:19.3]} 39... Qxa4 {[%clk 0:00:05.2]} 40. e6
{[%clk 0:00:16.8]} 40... Qc6 {[%clk 0:00:04.2]} 41. Qg3+ {[%clk 0:00:14.7]}
41... Ka8 {[%clk 0:00:03.7]} 42. Qe5 {[%clk 0:00:15.6]} 42... b6 {[%clk
0:00:01]} 43. e7 {[%clk 0:00:14.6]} 43... Kb7 {[%clk 0:00:01.5]} 44. Kf4 {[%clk
0:00:13.8]} 44... Ka6 {[%clk 0:00:01.7]} 45. Nf6 {[%clk 0:00:13.2]} 45... Kb7
{[%clk 0:00:01.2]} 46. e8=Q {[%clk 0:00:12.9]} 46... Rxe8 {[%clk 0:00:01.8]} 47.
Nxe8 {[%clk 0:00:13.7]} 47... a5 {[%clk 0:00:01.6]} 48. Nd6+ {[%clk 0:00:13.4]}
48... Ka6 {[%clk 0:00:01.6]} 49. d5 {[%clk 0:00:11.4]} 49... Qc5 {[%clk
0:00:01.5]} 50. Kxf5 {[%clk 0:00:09.8]} 50... a4 {[%clk 0:00:01.7]} 51. Ke6
{[%clk 0:00:09.9]} 51... a3 {[%clk 0:00:01.7]} 52. Qh8 {[%clk 0:00:10.4]} 52...
Ka5 {[%clk 0:00:01.7]} 53. Nb7+ {[%clk 0:00:09.3]} 53... Kb4 {[%clk 0:00:02.6]}
54. Nxc5 {[%clk 0:00:10.2]} 54... bxc5 {[%clk 0:00:03.2]} 55. d6 {[%clk
0:00:10]} 1-0

[Event "*** Titled Tuesday Blitz"]
[Site "Chess.com"]
[Date "2020.11.03"]
[Round "2"]
[White "BlackBoarder"]
[Black "swimmerchess"]
[Result "0-1"]
[WhiteElo "2557"]
[BlackElo "2852"]
[TimeControl "180+1"]
[EndTime "10:19:55 PST"]
[Termination "swimmerchess won on time"]

1. e4 {[%clk 0:03:00.9]} 1... c5 {[%clk 0:02:59.8]} 2. Nf3 {[%clk 0:02:59.3]}
2... Nc6 {[%clk 0:02:59.8]} 3. Bb5 {[%clk 0:02:59.2]} 3... Na5 {[%clk
0:02:59.9]} 4. c3 {[%clk 0:02:55.9]} 4... a6 {[%clk 0:02:59.9]} 5. Bd3 {[%clk
0:02:54.1]} 5... b5 {[%clk 0:03:00.8]} 6. O-O {[%clk 0:02:53.9]} 6... Bb7 {[%clk
0:03:01]} 7. Re1 {[%clk 0:02:53.6]} 7... e6 {[%clk 0:03:01.2]} 8. Bc2 {[%clk
0:02:52.1]} 8... Nf6 {[%clk 0:03:01.3]} 9. d4 {[%clk 0:02:46.9]} 9... cxd4
{[%clk 0:03:02.2]} 10. cxd4 {[%clk 0:02:47.2]} 10... Rc8 {[%clk 0:03:02.9]} 11.
Nc3 {[%clk 0:02:43.6]} 11... b4 {[%clk 0:03:02.8]} 12. Na4 {[%clk 0:02:43.6]}
12... Qc7 {[%clk 0:02:46.4]} 13. Bd3 {[%clk 0:02:35.3]} 13... d5 {[%clk
0:02:41.6]} 14. e5 {[%clk 0:02:31.7]} 14... Ne4 {[%clk 0:02:41.4]} 15. Bd2
{[%clk 0:02:25.1]} 15... Be7 {[%clk 0:02:30.3]} 16. Rc1 {[%clk 0:02:17.2]} 16...
Qd8 {[%clk 0:02:29.9]} 17. b3 {[%clk 0:02:13.5]} 17... O-O {[%clk 0:02:27.4]}
18. Qe2 {[%clk 0:01:56.5]} 18... Nc6 {[%clk 0:01:47.8]} 19. Be3 {[%clk
0:01:36.3]} 19... Qa5 {[%clk 0:01:41.4]} 20. Nd2 {[%clk 0:01:24.6]} 20... Nc3
{[%clk 0:01:37.6]} 21. Qh5 {[%clk 0:00:59.5]} 21... g6 {[%clk 0:01:36.5]} 22.
Qh6 {[%clk 0:00:58.6]} 22... Nxa4 {[%clk 0:00:54.7]} 23. bxa4 {[%clk 0:00:58.3]}
23... Qxa4 {[%clk 0:00:55.6]} 24. Nf3 {[%clk 0:00:55.6]} 24... f5 {[%clk
0:00:40.9]} 25. exf6 {[%clk 0:00:49.5]} 25... Bxf6 {[%clk 0:00:40.6]} 26. Bxg6
{[%clk 0:00:32.8]} 26... hxg6 {[%clk 0:00:41.5]} 27. Qxg6+ {[%clk 0:00:33.7]}
27... Bg7 {[%clk 0:00:23.6]} 28. Qxe6+ {[%clk 0:00:30.4]} 28... Rf7 {[%clk
0:00:20.9]} 29. Ng5 {[%clk 0:00:28.9]} 29... Rc7 {[%clk 0:00:20.3]} 30. Nxf7
{[%clk 0:00:16]} 30... Rxf7 {[%clk 0:00:21.2]} 31. h4 {[%clk 0:00:11.4]} 31...
Nd8 {[%clk 0:00:19.4]} 32. Qg6 {[%clk 0:00:07.6]} 32... Qd7 {[%clk 0:00:19.7]}
33. h5 {[%clk 0:00:07.1]} 33... Qf5 {[%clk 0:00:19.7]} 34. Qxf5 {[%clk
0:00:03.7]} 34... Rxf5 {[%clk 0:00:20.6]} 35. g4 {[%clk 0:00:04.4]} 35... Rf7
{[%clk 0:00:19.6]} 36. h6 {[%clk 0:00:04]} 36... Bf8 {[%clk 0:00:19]} 37. g5
{[%clk 0:00:04.3]} 37... Kh7 {[%clk 0:00:19.1]} 38. f4 {[%clk 0:00:04.8]} 38...
Ne6 {[%clk 0:00:18.9]} 39. Rf1 {[%clk 0:00:03.5]} 39... Kg6 {[%clk 0:00:18.2]}
40. f5+ {[%clk 0:00:03.9]} 40... Rxf5 {[%clk 0:00:17.7]} 41. Rxf5 {[%clk
0:00:04.8]} 41... Kxf5 {[%clk 0:00:18.6]} 42. h7 {[%clk 0:00:05.5]} 42... Bg7
{[%clk 0:00:19.1]} 43. Rb1 {[%clk 0:00:03.1]} 43... a5 {[%clk 0:00:18.7]} 44. a3
{[%clk 0:00:03.2]} 44... Kg6 {[%clk 0:00:17.6]} 45. axb4 {[%clk 0:00:03.1]}
45... a4 {[%clk 0:00:18.2]} 46. Ra1 {[%clk 0:00:02.7]} 46... Bc6 {[%clk
0:00:18.6]} 47. Rc1 {[%clk 0:00:03]} 47... Nxd4 {[%clk 0:00:17.8]} 48. Bxd4
{[%clk 0:00:02]} 48... Bxd4+ {[%clk 0:00:18.7]} 49. Kg2 {[%clk 0:00:02.5]} 49...
Bb5 {[%clk 0:00:19.3]} 50. Rd1 {[%clk 0:00:02]} 50... Bg7 {[%clk 0:00:18.4]} 51.
Kg3 {[%clk 0:00:02.2]} 51... Bc4 {[%clk 0:00:18.4]} 52. b5 {[%clk 0:00:02.1]}
52... Kxh7 {[%clk 0:00:18.1]} 53. b6 {[%clk 0:00:02.6]} 53... Kg6 {[%clk
0:00:18.6]} 54. b7 {[%clk 0:00:03]} 54... Be5+ {[%clk 0:00:19.2]} 55. Kg4 {[%clk
0:00:03.4]} 55... Be2+ {[%clk 0:00:19.4]} 56. Kh4 {[%clk 0:00:01.5]} 56... Bxd1
{[%clk 0:00:20.3]} 57. b8=Q {[%clk 0:00:01.1]} 57... Bxb8 {[%clk 0:00:20.5]} 0-1

[Event "*** Titled Tuesday Blitz"]
[Site "Chess.com"]
[Date "2020.11.03"]
[Round "2"]
[White "Chessdude1987"]
[Black "Philosopherrr"]
[Result "0-1"]
[WhiteElo "2309"]
[BlackElo "2533"]
[TimeControl "180+1"]
[EndTime "10:19:55 PST"]
[Termination "Philosopherrr won on time"]

1. e4 {[%clk 0:03:00.9]} 1... e5 {[%clk 0:02:58.6]} 2. f4 {[%clk 0:03:00.6]}
2... Bc5 {[%clk 0:02:56.9]} 3. Nf3 {[%clk 0:02:53.4]} 3... d6 {[%clk 0:02:56.7]}
4. Bc4 {[%clk 0:02:48.5]} 4... Nf6 {[%clk 0:02:55.9]} 5. Nc3 {[%clk 0:02:43.9]}
5... O-O {[%clk 0:02:50.5]} 6. d3 {[%clk 0:02:29.7]} 6... c6 {[%clk 0:02:48.5]}
7. Bb3 {[%clk 0:02:18.3]} 7... h6 {[%clk 0:02:38.2]} 8. Qe2 {[%clk 0:02:14.3]}
8... Bg4 {[%clk 0:02:36.3]} 9. Be3 {[%clk 0:02:11.5]} 9... Nbd7 {[%clk
0:02:21.9]} 10. h3 {[%clk 0:02:04.5]} 10... Bxf3 {[%clk 0:02:18.6]} 11. Qxf3
{[%clk 0:02:03.8]} 11... Re8 {[%clk 0:01:57.3]} 12. O-O-O {[%clk 0:02:03]} 12...
a5 {[%clk 0:01:55.3]} 13. a4 {[%clk 0:01:52.5]} 13... Bxe3+ {[%clk 0:01:52.7]}
14. Qxe3 {[%clk 0:01:52.1]} 14... Nc5 {[%clk 0:01:52.9]} 15. fxe5 {[%clk
0:01:42.3]} 15... Rxe5 {[%clk 0:01:47.5]} 16. d4 {[%clk 0:01:41.2]} 16... Nxb3+
{[%clk 0:01:43.8]} 17. cxb3 {[%clk 0:01:40.6]} 17... Re8 {[%clk 0:01:39.9]} 18.
Qf3 {[%clk 0:01:34.1]} 18... Qb6 {[%clk 0:01:33.8]} 19. Kc2 {[%clk 0:01:22.5]}
19... Re6 {[%clk 0:01:28]} 20. g4 {[%clk 0:01:19.8]} 20... Rae8 {[%clk 0:01:27]}
21. Rhe1 {[%clk 0:01:16.2]} 21... Qb4 {[%clk 0:01:23.5]} 22. h4 {[%clk 0:01:14]}
22... c5 {[%clk 0:01:19.3]} 23. g5 {[%clk 0:00:44.8]} 23... hxg5 {[%clk
0:01:14.2]} 24. hxg5 {[%clk 0:00:44.5]} 24... cxd4 {[%clk 0:01:07.8]} 25. gxf6
{[%clk 0:00:44]} 25... Rxf6 {[%clk 0:01:06.3]} 26. Qh3 {[%clk 0:00:25.9]} 26...
dxc3 {[%clk 0:01:02.8]} 27. bxc3 {[%clk 0:00:23.5]} 27... Rf2+ {[%clk
0:01:00.3]} 28. Rd2 {[%clk 0:00:23]} 28... Rxd2+ {[%clk 0:00:58.9]} 29. Kxd2
{[%clk 0:00:22.9]} 29... Qxb3 {[%clk 0:00:59]} 30. Rh1 {[%clk 0:00:21.1]} 30...
Kf8 {[%clk 0:00:47.5]} 31. Qh8+ {[%clk 0:00:19.5]} 31... Ke7 {[%clk 0:00:45.9]}
32. Qxg7 {[%clk 0:00:19.6]} 32... Qa2+ {[%clk 0:00:42.7]} 33. Kd3 {[%clk
0:00:17.9]} 33... Qxa4 {[%clk 0:00:43.1]} 34. Qg5+ {[%clk 0:00:17]} 34... Kd7
{[%clk 0:00:43.4]} 35. Qd5 {[%clk 0:00:15.7]} 35... Kc7 {[%clk 0:00:33.6]} 36.
Qxf7+ {[%clk 0:00:15.5]} 36... Kb8 {[%clk 0:00:33.6]} 37. Qd5 {[%clk 0:00:12.7]}
37... Qd7 {[%clk 0:00:28.2]} 38. Rh6 {[%clk 0:00:11.6]} 38... Qc7 {[%clk
0:00:26.3]} 39. Rxd6 {[%clk 0:00:11.1]} 39... Rc8 {[%clk 0:00:25.3]} 40. c4
{[%clk 0:00:10.3]} 40... Ka7 {[%clk 0:00:20.2]} 41. e5 {[%clk 0:00:09.6]} 41...
Qh7+ {[%clk 0:00:18.9]} 42. Kd4 {[%clk 0:00:09.2]} 42... Qh4+ {[%clk 0:00:19.1]}
43. Kd3 {[%clk 0:00:09.4]} 43... Qg3+ {[%clk 0:00:18.8]} 44. Kd4 {[%clk
0:00:09.6]} 44... Qf4+ {[%clk 0:00:19]} 45. Kd3 {[%clk 0:00:09.7]} 45... Qg3+
{[%clk 0:00:17.2]} 46. Kd4 {[%clk 0:00:09.9]} 46... Qg1+ {[%clk 0:00:16.8]} 47.
Kd3 {[%clk 0:00:10]} 47... Qd1+ {[%clk 0:00:16.9]} 48. Ke4 {[%clk 0:00:10.1]}
48... Qc2+ {[%clk 0:00:17]} 49. Kd4 {[%clk 0:00:10.1]} 49... Qd2+ {[%clk
0:00:16.4]} 50. Ke4 {[%clk 0:00:10.2]} 50... Qe1+ {[%clk 0:00:16.4]} 51. Kd4
{[%clk 0:00:10.4]} 51... Rh8 {[%clk 0:00:14.5]} 52. Qxa5+ {[%clk 0:00:09.8]}
52... Qxa5 {[%clk 0:00:13.3]} 53. Ra6+ {[%clk 0:00:05.5]} 53... Qxa6 {[%clk
0:00:12.7]} 0-1

[Event "*** Titled Tuesday Blitz"]
[Site "Chess.com"]
[Date "2020.11.03"]
[Round "2"]
[White "winniethepooh04"]
[Black "Omk124"]
[Result "1/2-1/2"]
[WhiteElo "2233"]
[BlackElo "2418"]
[TimeControl "180+1"]
[EndTime "10:19:56 PST"]
[Termination "Game drawn by repetition"]

1. d4 {[%clk 0:03:00.9]} 1... Nf6 {[%clk 0:02:59.5]} 2. Nf3 {[%clk 0:03:01.3]}
2... g6 {[%clk 0:02:59.7]} 3. Bf4 {[%clk 0:03:01.8]} 3... Bg7 {[%clk 0:03:00.1]}
4. e3 {[%clk 0:03:02.5]} 4... O-O {[%clk 0:03:00.4]} 5. Be2 {[%clk 0:03:02.7]}
5... d5 {[%clk 0:03:01]} 6. O-O {[%clk 0:03:01.8]} 6... c5 {[%clk 0:03:01.3]} 7.
c3 {[%clk 0:03:01.7]} 7... Nc6 {[%clk 0:02:59.9]} 8. h3 {[%clk 0:03:01.2]} 8...
b6 {[%clk 0:02:59.9]} 9. Nbd2 {[%clk 0:03:00.8]} 9... Bb7 {[%clk 0:02:59.6]} 10.
Ne5 {[%clk 0:02:59.5]} 10... Nd7 {[%clk 0:02:59.2]} 11. Nxd7 {[%clk 0:02:53.6]}
11... Qxd7 {[%clk 0:02:59.2]} 12. Nf3 {[%clk 0:02:53.5]} 12... Rfd8 {[%clk
0:02:53.6]} 13. Bh2 {[%clk 0:02:53.3]} 13... Rac8 {[%clk 0:02:53.3]} 14. Rc1
{[%clk 0:02:48.4]} 14... cxd4 {[%clk 0:02:45.5]} 15. exd4 {[%clk 0:02:46.3]}
15... Na5 {[%clk 0:02:43.1]} 16. Re1 {[%clk 0:02:45.2]} 16... Nc4 {[%clk
0:02:41.7]} 17. Qb3 {[%clk 0:02:39.9]} 17... Bc6 {[%clk 0:02:39]} 18. Bxc4
{[%clk 0:02:35.3]} 18... dxc4 {[%clk 0:02:39.3]} 19. Qd1 {[%clk 0:02:33]} 19...
e6 {[%clk 0:02:36.2]} 20. Ne5 {[%clk 0:02:31.5]} 20... Qd5 {[%clk 0:02:26.2]}
21. Nxc6 {[%clk 0:02:30.2]} 21... Rxc6 {[%clk 0:02:27.1]} 22. Qe2 {[%clk
0:02:26.8]} 22... b5 {[%clk 0:02:25.8]} 23. a3 {[%clk 0:02:26.5]} 23... a5
{[%clk 0:02:24.9]} 24. Qe4 {[%clk 0:02:23.4]} 24... b4 {[%clk 0:02:23.3]} 25.
axb4 {[%clk 0:02:22.3]} 25... axb4 {[%clk 0:02:24]} 26. Be5 {[%clk 0:02:16.5]}
26... Bh6 {[%clk 0:02:16.5]} 27. Bf4 {[%clk 0:02:09.8]} 27... Bg7 {[%clk
0:02:13.2]} 28. Be5 {[%clk 0:02:09.6]} 28... bxc3 {[%clk 0:02:13.6]} 29. bxc3
{[%clk 0:02:06.9]} 29... Bh6 {[%clk 0:02:13.6]} 30. Bf4 {[%clk 0:02:06.1]} 30...
Bf8 {[%clk 0:02:02.8]} 31. Rb1 {[%clk 0:01:51.2]} 31... Rcc8 {[%clk 0:01:54.9]}
32. Qxd5 {[%clk 0:01:42]} 32... Rxd5 {[%clk 0:01:55.8]} 33. Re5 {[%clk
0:01:41.7]} 33... Rxe5 {[%clk 0:01:25.4]} 34. Bxe5 {[%clk 0:01:38.7]} 34... h5
{[%clk 0:01:23.7]} 35. Rb8 {[%clk 0:01:36]} 35... Rxb8 {[%clk 0:01:23.1]} 36.
Bxb8 {[%clk 0:01:35.9]} 36... Ba3 {[%clk 0:01:23.1]} 37. Bf4 {[%clk 0:01:28.1]}
37... Bb2 {[%clk 0:01:20.6]} 38. Bd2 {[%clk 0:01:28]} 38... Kf8 {[%clk
0:01:21.2]} 39. Kf1 {[%clk 0:01:28.1]} 39... Ke7 {[%clk 0:01:21.8]} 40. Ke2
{[%clk 0:01:28.2]} 40... Kd6 {[%clk 0:01:22.5]} 41. Kd1 {[%clk 0:01:28]} 41...
Kd5 {[%clk 0:01:22.8]} 42. Kc2 {[%clk 0:01:28.1]} 42... Ba3 {[%clk 0:01:23.5]}
43. f3 {[%clk 0:01:27.6]} 43... Bd6 {[%clk 0:01:23.8]} 44. Be1 {[%clk
0:01:26.3]} 44... f5 {[%clk 0:01:23.5]} 45. Kd2 {[%clk 0:01:23.6]} 45... Bf4+
{[%clk 0:01:22.4]} 46. Ke2 {[%clk 0:01:23.6]} 46... Kc6 {[%clk 0:01:20.1]} 47.
Kd1 {[%clk 0:01:20.7]} 47... Kb6 {[%clk 0:01:17.2]} 48. Kc2 {[%clk 0:01:20.2]}
48... Kb5 {[%clk 0:01:17.6]} 49. Bf2 {[%clk 0:01:19.6]} 49... g5 {[%clk
0:01:16.4]} 50. Be1 {[%clk 0:01:19.3]} 50... Kc6 {[%clk 0:01:12.7]} 51. Kd1
{[%clk 0:01:17.7]} 51... Kd5 {[%clk 0:01:13.6]} 52. Ke2 {[%clk 0:01:15.8]} 52...
g4 {[%clk 0:01:08.2]} 53. hxg4 {[%clk 0:01:15.2]} 53... fxg4 {[%clk 0:01:08.9]}
54. fxg4 {[%clk 0:01:08.4]} 54... hxg4 {[%clk 0:01:09.8]} 55. Bf2 {[%clk
0:01:04.9]} 55... Ke4 {[%clk 0:01:09.6]} 56. Be1 {[%clk 0:01:05]} 56... e5
{[%clk 0:00:54.8]} 57. dxe5 {[%clk 0:01:04.3]} 57... Bxe5 {[%clk 0:00:55.7]} 58.
Bd2 {[%clk 0:01:03]} 58... Bf6 {[%clk 0:00:50.5]} 59. Be1 {[%clk 0:01:02.4]}
59... Bg5 {[%clk 0:00:49.8]} 60. Bd2 {[%clk 0:00:55.7]} 60... Bf6 {[%clk
0:00:02.8]} 61. Be1 {[%clk 0:00:55.1]} 61... Be5 {[%clk 0:00:03.3]} 62. Bd2
{[%clk 0:00:54.4]} 62... g3 {[%clk 0:00:04]} 63. Be1 {[%clk 0:00:54.2]} 63...
Bf4 {[%clk 0:00:04.6]} 64. Bd2 {[%clk 0:00:52.7]} 64... Bd6 {[%clk 0:00:05.3]}
65. Bh6 {[%clk 0:00:49.7]} 65... Be5 {[%clk 0:00:05.2]} 66. Bd2 {[%clk 0:00:49]}
66... Bg7 {[%clk 0:00:05.3]} 67. Be1 {[%clk 0:00:48.9]} 67... Bf6 {[%clk
0:00:05.3]} 68. Bd2 {[%clk 0:00:49.1]} 68... Be5 {[%clk 0:00:05.6]} 69. Be1
{[%clk 0:00:49.7]} 69... Kd5 {[%clk 0:00:06]} 70. Bd2 {[%clk 0:00:50.1]} 70...
Ke4 {[%clk 0:00:06.2]} 1/2-1/2

[Event "*** Titled Tuesday Blitz"]
[Site "Chess.com"]
[Date "2020.11.03"]
[Round "2"]
[White "Zarikovs1999"]
[Black "Maghalashvili"]
[Result "0-1"]
[WhiteElo "2325"]
[BlackElo "2670"]
[TimeControl "180+1"]
[EndTime "10:19:57 PST"]
[Termination "Maghalashvili won by checkmate"]

1. e4 {[%clk 0:02:58.6]} 1... c5 {[%clk 0:02:59.5]} 2. Nf3 {[%clk 0:02:56.1]}
2... d6 {[%clk 0:02:59.3]} 3. d4 {[%clk 0:02:53.7]} 3... cxd4 {[%clk 0:03:00.2]}
4. Nxd4 {[%clk 0:02:54.2]} 4... Nf6 {[%clk 0:03:00.7]} 5. f3 {[%clk 0:02:54.8]}
5... a6 {[%clk 0:03:01.6]} 6. c4 {[%clk 0:02:54.6]} 6... e6 {[%clk 0:03:00.3]}
7. Nc3 {[%clk 0:02:54.8]} 7... b6 {[%clk 0:03:00.8]} 8. Be3 {[%clk 0:02:54.7]}
8... Bb7 {[%clk 0:03:01.3]} 9. Be2 {[%clk 0:02:55.3]} 9... Be7 {[%clk 0:03:01]}
10. O-O {[%clk 0:02:55.9]} 10... O-O {[%clk 0:03:01.7]} 11. Rc1 {[%clk
0:02:56.3]} 11... Nbd7 {[%clk 0:03:01.7]} 12. b3 {[%clk 0:02:52.7]} 12... Re8
{[%clk 0:03:02.2]} 13. Qd2 {[%clk 0:02:52.8]} 13... Rc8 {[%clk 0:03:01.7]} 14.
Rfd1 {[%clk 0:02:53.2]} 14... Qc7 {[%clk 0:03:02.2]} 15. Nc2 {[%clk 0:02:48.6]}
15... Qb8 {[%clk 0:03:02.6]} 16. Bf4 {[%clk 0:02:49.1]} 16... Ne5 {[%clk
0:03:00.2]} 17. Na4 {[%clk 0:02:46.6]} 17... Nfd7 {[%clk 0:02:55.6]} 18. Qe3
{[%clk 0:02:13.4]} 18... Bd8 {[%clk 0:02:37.7]} 19. Bf1 {[%clk 0:02:08.2]} 19...
Bc6 {[%clk 0:02:31.5]} 20. Nb4 {[%clk 0:01:57.7]} 20... Bxa4 {[%clk 0:02:24.6]}
21. bxa4 {[%clk 0:01:58.6]} 21... Nc5 {[%clk 0:02:24.2]} 22. Qd2 {[%clk
0:01:44.1]} 22... a5 {[%clk 0:02:12.2]} 23. Nd3 {[%clk 0:01:24.5]} 23... Nxa4
{[%clk 0:02:10.7]} 24. Nf2 {[%clk 0:01:04.2]} 24... Bc7 {[%clk 0:01:56.9]} 25.
Bxe5 {[%clk 0:00:49]} 25... dxe5 {[%clk 0:01:56.6]} 26. Qd7 {[%clk 0:00:49.9]}
26... Nc5 {[%clk 0:01:55.4]} 27. Qb5 {[%clk 0:00:49.5]} 27... Red8 {[%clk
0:01:52.7]} 28. Ng4 {[%clk 0:00:46.4]} 28... Rxd1 {[%clk 0:01:48.1]} 29. Rxd1
{[%clk 0:00:46.4]} 29... Rd8 {[%clk 0:01:49]} 30. Nf2 {[%clk 0:00:38.7]} 30...
h5 {[%clk 0:01:43.4]} 31. Qc6 {[%clk 0:00:31.3]} 31... g6 {[%clk 0:01:37.1]} 32.
g4 {[%clk 0:00:27.1]} 32... hxg4 {[%clk 0:01:34.7]} 33. Rxd8+ {[%clk 0:00:26.5]}
33... Qxd8 {[%clk 0:01:33.4]} 34. Nxg4 {[%clk 0:00:27.4]} 34... Kg7 {[%clk
0:01:32.4]} 35. Kg2 {[%clk 0:00:20]} 35... Qd2+ {[%clk 0:01:31.8]} 36. Kg3
{[%clk 0:00:20.1]} 36... Qf4+ {[%clk 0:01:31.1]} 37. Kg2 {[%clk 0:00:18.8]}
37... Bd8 {[%clk 0:01:31]} 38. Qd6 {[%clk 0:00:14.4]} 38... Bf6 {[%clk
0:01:27.9]} 39. Qxb6 {[%clk 0:00:14]} 39... Qd2+ {[%clk 0:01:25.5]} 40. Nf2
{[%clk 0:00:08.7]} 40... Na4 {[%clk 0:01:21.7]} 41. Qb5 {[%clk 0:00:06.5]} 41...
Nc3 {[%clk 0:01:18.9]} 42. Qxa5 {[%clk 0:00:05.8]} 42... Bh4 {[%clk 0:01:13.3]}
43. Qxe5+ {[%clk 0:00:05]} 43... Kh7 {[%clk 0:01:13]} 44. Qc5 {[%clk 0:00:01.6]}
44... Nd1 {[%clk 0:01:12.9]} 45. Kh3 {[%clk 0:00:01.6]} 45... Bxf2 {[%clk
0:01:12.1]} 46. Qf8 {[%clk 0:00:02.1]} 46... Qd7 {[%clk 0:01:01.1]} 47. c5
{[%clk 0:00:02.2]} 47... e5+ {[%clk 0:00:52.6]} 48. Kg2 {[%clk 0:00:02.1]} 48...
Be3 {[%clk 0:00:45.4]} 49. Bc4 {[%clk 0:00:02.3]} 49... Qd2+ {[%clk 0:00:31.9]}
50. Kh3 {[%clk 0:00:02.6]} 50... Nf2+ {[%clk 0:00:27.5]} 51. Kh4 {[%clk
0:00:03]} 51... Bg5+ {[%clk 0:00:27.3]} 52. Kg3 {[%clk 0:00:03.4]} 52... Nh1+
{[%clk 0:00:24.3]} 53. Kh3 {[%clk 0:00:03.9]} 53... Nf2+ {[%clk 0:00:23.5]} 54.
Kg3 {[%clk 0:00:04.3]} 54... Nxe4+ {[%clk 0:00:17.8]} 55. fxe4 {[%clk
0:00:04.1]} 55... Bf4+ {[%clk 0:00:18]} 56. Kg4 {[%clk 0:00:01.9]} 56... Qg2+
{[%clk 0:00:17.1]} 57. Kh4 {[%clk 0:00:02.1]} 57... g5+ {[%clk 0:00:17.2]} 58.
Kh5 {[%clk 0:00:01.9]} 58... Qh3# {[%clk 0:00:18.1]} 0-1